fUSD/lending_fUSD_20240423
["ID","MTS","AMOUNT","RATE_DAILY","PERIOD"]
[323261308,1713856250014,-500.0,0.00011999,2]
[323261310,1713856250024,-500.0,0.00011999,2]
[323261312,1713856250034,-500.0,0.00011999,2]
[323261314,1713856250044,-500.0,0.00011999,2]
[323261316,1713856250054,-500.0,0.00011999,2]
[323261318,1713856250065,-501.86794072,0.00011999,2]
[323261320,1713856250075,-500.0,0.00011999,2]
[323261322,1713856250084,-185.72448928,0.00011999,2]
[323261324,1713856250093,-500.0,0.00011999,2]
[323261326,1713856250103,-500.0,0.00011999,2]
[323261328,1713856250114,-500.0,0.00011999,2]
[323261330,1713856250123,-500.0,0.00011999,2]
[323261332,1713856250133,-500.0,0.00011999,2]
[323261334,1713856250142,-500.0,0.00011999,2]
[323261336,1713856250153,-500.0,0.00011999,2]
[323261338,1713856250163,-1480.54,0.00011999,2]
[323261340,1713856250173,-504.31666459,0.00011999,2]
[323261342,1713856250182,-1204.83,0.00011999,2]
[323261344,1713856250192,-500.0,0.00011999,2]
[323261346,1713856250201,-500.0,0.00011999,2]
[323261348,1713856250210,-500.0,0.00011999,2]
[323261350,1713856250219,-500.0,0.00011999,2]
[323261352,1713856250229,-500.0,0.00011999,2]
[323261355,1713856250238,-500.0,0.00011999,2]
[323261357,1713856250248,-503.14778219,0.00011999,2]
[323261359,1713856250259,-500.0,0.00011999,2]
[323261361,1713856250268,-500.0,0.00011999,2]
[323261363,1713856250278,-500.0,0.00011999,2]
[323261365,1713856250287,-500.0,0.00011999,2]
[323261367,1713856250296,-521.91338485,0.00011999,2]
[323261369,1713856250306,-500.0,0.00011999,2]
[323261371,1713856250315,-500.0,0.00011999,2]
[323261373,1713856250324,-500.0,0.00011999,2]
[323261375,1713856250335,-500.0,0.00011999,2]
[323261377,1713856250344,-500.0,0.00011999,2]
[323261379,1713856250354,-500.0,0.00011999,2]
[323261381,1713856250363,-500.0,0.00011999,2]
[323261383,1713856250375,-500.0,0.00011999,2]
[323261385,1713856250385,-500.0,0.00011999,2]
[323261387,1713856250395,-500.0,0.00011999,2]
[323261388,1713856250404,-500.0,0.00011999,2]
[323261390,1713856250414,-500.0,0.00011999,2]
[323261393,1713856250425,-500.0,0.00011999,2]
[323261395,1713856250434,-500.0,0.00011999,2]
[323261397,1713856250443,-507.063803,0.00011999,2]
[323261399,1713856250453,-504.74110548,0.00011999,2]
[323261401,1713856250462,-500.0,0.00011999,2]
[323261403,1713856250471,-500.0,0.00011999,2]
[323261405,1713856250480,-500.0,0.00011999,2]
[323261407,1713856250490,-500.0,0.00011999,2]
[323261409,1713856250499,-500.0,0.00011999,2]
[323261410,1713856250509,-500.0,0.00011999,2]
[323261413,1713856250518,-500.0,0.00011999,2]
[323261415,1713856250527,-246.0560207,0.00011999,2]
[323261417,1713856250536,-503.05136092,0.00011999,2]
[323261419,1713856250546,-500.0,0.00011999,2]
[323261420,1713856250555,-500.0,0.00011999,2]
[323261423,1713856250565,-500.0,0.00011999,2]
[323261424,1713856250574,-500.0,0.00011999,2]
[323261427,1713856250583,-500.0,0.00011999,2]
[323261429,1713856250593,-500.0,0.00011999,2]
[323261431,1713856250602,-1519.26,0.00011999,2]
[323261432,1713856250611,-633.75087747,0.00011999,2]
[323261433,1713856250622,-500.0,0.00011999,2]
[323261434,1713856250632,-500.0,0.00011999,2]
[323261435,1713856250642,-500.0,0.00011999,2]
[323261436,1713856250651,-503.31331729,0.00011999,2]
[323261437,1713856250661,-500.0,0.00011999,2]
[323261445,1713856250910,-502.28623068,0.00011999,2]
[323261446,1713856250929,-284.14935101,0.00011999,2]
[323261448,1713856250939,-527.55,0.00011999,2]
[323261450,1713856250949,-500.0,0.00011999,2]
[323261452,1713856250959,-550.25,0.00011999,2]
[323261454,1713856250969,-500.0,0.00011999,2]
[323261456,1713856250978,-500.0,0.00011999,2]
[323261458,1713856250991,-500.0,0.00011999,2]
[323261460,1713856251001,-500.0,0.00011999,2]
[323261462,1713856251011,-500.0,0.00011999,2]
[323261464,1713856251021,-500.83396211,0.00011999,2]
[323261466,1713856251032,-500.0,0.00011999,2]
[323261468,1713856251042,-500.0,0.00011999,2]
[323261470,1713856251051,-500.0,0.00011999,2]
[323261472,1713856251061,-500.0,0.00011999,2]
[323261474,1713856251072,-500.0,0.00011999,2]
[323261476,1713856251083,-500.0,0.00011999,2]
[323261478,1713856251093,-500.0,0.00011999,2]
[323261480,1713856251102,-500.0,0.00011999,2]
[323261482,1713856251112,-500.0,0.00011999,2]
[323261485,1713856251126,-500.0,0.00011999,2]
[323261486,1713856251136,-2330.69,0.00011999,2]
[323261489,1713856251146,-500.0,0.00011999,2]
[323261491,1713856251155,-500.0,0.00011999,2]
[323261492,1713856251165,-500.0,0.00011999,2]
[323261495,1713856251175,-500.0,0.00011999,2]
[323261497,1713856251184,-500.0,0.00011999,2]
[323261499,1713856251194,-500.0,0.00011999,2]
[323261501,1713856251203,-500.0,0.00011999,2]
[323261503,1713856251212,-500.0,0.00011999,2]
[323261505,1713856251222,-503.08403738,0.00011999,2]
[323261507,1713856251231,-602.69607768,0.00011999,2]
[323261509,1713856251240,-500.0,0.00011999,2]
[323261511,1713856251249,-500.0,0.00011999,2]
[323261513,1713856251259,-1598.13,0.00011999,2]
[323261515,1713856251268,-500.0,0.00011999,2]
[323261517,1713856251277,-500.0,0.00011999,2]
[323261519,1713856251287,-500.0,0.00011999,2]
[323261521,1713856251296,-1448.42,0.00011999,2]
[323261523,1713856251305,-503.86426964,0.00011999,2]
[323261525,1713856251314,-500.0,0.00011999,2]
[323261527,1713856251323,-500.0,0.00011999,2]
[323261529,1713856251333,-786.48,0.00011999,2]
[323261531,1713856251342,-500.0,0.00011999,2]
[323261533,1713856251351,-500.0,0.00011999,2]
[323261535,1713856251361,-500.0,0.00011999,2]
[323261537,1713856251372,-500.0,0.00011999,2]
[323261539,1713856251382,-500.0,0.00011999,2]
[323261541,1713856251391,-184.60316647,0.00011999,2]
[323261543,1713856251400,-2923.36,0.00011999,2]
[323261545,1713856251410,-521.51,0.00011999,2]
[323261547,1713856251419,-1477.85,0.00011999,2]
[323261549,1713856251428,-500.0,0.00011999,2]
[323261551,1713856251437,-500.0,0.00011999,2]
[323261553,1713856251447,-500.0,0.00011999,2]
[323261555,1713856251456,-500.0,0.00011999,2]
[323261557,1713856251465,-500.0,0.00011999,2]
[323261559,1713856251475,-500.0,0.00011999,2]
[323261561,1713856251485,-500.0,0.00011999,2]
[323261562,1713856251494,-500.0,0.00011999,2]
[323261565,1713856251504,-506.6950226,0.00011999,2]
[323261566,1713856251515,-511.49160754,0.00011999,2]
[323261568,1713856251526,-500.0,0.00011999,2]
[323261570,1713856251537,-500.0,0.00011999,2]
[323261572,1713856251547,-567.6760498,0.00011999,2]
[323261574,1713856251557,-500.0,0.00011999,2]
[323261577,1713856251567,-500.0,0.00011999,2]
[323261578,1713856251578,-500.0,0.00011999,2]
[323261581,1713856251589,-500.0,0.00011999,2]
[323261582,1713856251599,-500.0,0.00011999,2]
[323261584,1713856251608,-500.0,0.00011999,2]
[323261586,1713856251620,-500.0,0.00011999,2]
[323261589,1713856251630,-500.0,0.00011999,2]
[323261590,1713856251639,-504.34777392,0.00011999,2]
[323261592,1713856251650,-500.0,0.00011999,2]
[323261594,1713856251660,-500.0,0.00011999,2]
[323261596,1713856251670,-500.0,0.00011999,2]
[323261599,1713856251681,-500.73600101,0.00011999,2]
[323261601,1713856251693,-500.0,0.00011999,2]
[323261603,1713856251705,-500.0,0.00011999,2]
[323261605,1713856251715,-383.39150634,0.00011999,2]
[323261607,1713856251727,-500.0,0.00011999,2]
[323261609,1713856251737,-500.89447735,0.00011999,2]
[323261611,1713856251747,-500.0,0.00011999,2]
[323261613,1713856251758,-1931.72,0.00011999,2]
[323261614,1713856251768,-500.0,0.00011999,2]
[323261616,1713856251778,-505.52622917,0.00011999,2]
[323261619,1713856251788,-500.0,0.00011999,2]
[323261621,1713856251797,-594.49,0.00011999,2]
[323261622,1713856251806,-500.0,0.00011999,2]
[323261625,1713856251816,-500.0,0.00011999,2]
[323261627,1713856251825,-500.0,0.00011999,2]
[323261628,1713856251834,-500.0,0.00011999,2]
[323261631,1713856251845,-501.43864854,0.00011999,2]
[323261633,1713856251855,-500.0,0.00011999,2]
[323261635,1713856251867,-502.41784682,0.00011999,2]
[323261637,1713856251879,-502.28048945,0.00011999,2]
[323261638,1713856251889,-501.75377957,0.00011999,2]
[323261640,1713856251899,-500.0,0.00011999,2]
[323261642,1713856251909,-500.0,0.00011999,2]
[323261644,1713856251920,-500.49687165,0.00011999,2]
[323261646,1713856251930,-500.0,0.00011999,2]
[323261649,1713856251940,-525.7780604,0.00011999,2]
[323261650,1713856251949,-500.0,0.00011999,2]
[323261652,1713856251958,-500.0,0.00011999,2]
[323261654,1713856251970,-500.0,0.00011999,2]
[323261657,1713856251981,-500.0,0.00011999,2]
[323261659,1713856251993,-500.0,0.00011999,2]
[323261661,1713856252004,-653.89,0.00011999,2]
[323261663,1713856252015,-500.0,0.00011999,2]
[323261664,1713856252026,-500.0,0.00011999,2]
[323261666,1713856252036,-500.0,0.00011999,2]
[323261669,1713856252046,-500.0,0.00011999,2]
[323261671,1713856252056,-502.51507852,0.00011999,2]
[323261673,1713856252067,-500.0,0.00011999,2]
[323261675,1713856252077,-2345.26,0.00011999,2]
[323261676,1713856252087,-500.0,0.00011999,2]
[323261679,1713856252097,-500.0,0.00011999,2]
[323261680,1713856252108,-502.65488263,0.00011999,2]
[323261682,1713856252120,-500.0,0.00011999,2]
[323261685,1713856252132,-505.83583114,0.00011999,2]
[323261687,1713856252141,-500.0,0.00011999,2]
[323261688,1713856252151,-500.0,0.00011999,2]
[323261690,1713856252160,-500.0,0.00011999,2]
[323261693,1713856252170,-500.0,0.00011999,2]
[323261695,1713856252180,-501.5207378,0.00011999,2]
[323261696,1713856252189,-502.96441976,0.00011999,2]
[323261699,1713856252199,-563.48753917,0.00011999,2]
[323261701,1713856252208,-500.0,0.00011999,2]
[323261702,1713856252219,-500.0,0.00011999,2]
[323261704,1713856252229,-502.52744124,0.00011999,2]
[323261706,1713856252238,-862.5,0.00011999,2]
[323261708,1713856252248,-502.61635844,0.00011999,2]
[323261711,1713856252258,-596.655813,0.00011999,2]
[323261712,1713856252267,-507.58169904,0.00011999,2]
[323261714,1713856252276,-1531.2,0.00011999,2]
[323261716,1713856252286,-162.99843093,0.00011999,2]
[323261718,1713856252296,-500.0,0.00011999,2]
[323261720,1713856252305,-505.9854308,0.00011999,2]
[323261722,1713856252315,-500.0,0.00011999,2]
[323261724,1713856252325,-629.41223947,0.00011999,2]
[323261726,1713856252335,-506.31779589,0.00011999,2]
[323261728,1713856252345,-500.0,0.00011999,2]
[323261730,1713856252354,-500.0,0.00011999,2]
[323261732,1713856252364,-2002.35626629,0.00011999,2]
[323261734,1713856252374,-504.45009408,0.00011999,2]
[323261736,1713856252384,-618.36,0.00011999,2]
[323261738,1713856252392,-500.0,0.00011999,2]
[323261740,1713856252401,-575.2,0.00011999,2]
[323261741,1713856252410,-498.11933615,0.00011999,2]
[323261742,1713856252419,-1974.72,0.00011999,2]
[323261743,1713856252428,-500.0,0.00011999,2]
[323261744,1713856252437,-812.19,0.00011999,2]
[323261745,1713856252446,-500.58,0.00011999,2]
[323261746,1713856252455,-500.0,0.00011999,2]
[323261747,1713856252464,-503.19920354,0.00011999,2]
[323261748,1713856252472,-96083.3149474,0.00011999,3]
[323261750,1713856252481,-503.34104853,0.00011999,2]
[323261752,1713856252490,-568.07765721,0.00011999,2]
[323261754,1713856252499,-500.0,0.00011999,2]
[323261756,1713856252508,-501.39591085,0.00011999,2]
[323261758,1713856252517,-518.23448549,0.00011999,2]
[323261760,1713856252526,-727.49,0.00011999,2]
[323261762,1713856252535,-500.0,0.00011999,2]
[323261764,1713856252544,-500.0,0.00011999,2]
[323261766,1713856252553,-641.66,0.00011999,2]
[323261768,1713856252561,-517.825103,0.00011999,2]
[323261770,1713856252570,-500.0,0.00011999,2]
[323261772,1713856252582,-500.0,0.00011999,2]
[323261775,1713856252599,-500.0,0.00011999,2]
[323261778,1713856252614,-500.0,0.00011999,2]
[323261780,1713856252626,-500.0,0.00011999,2]
[323261783,1713856252639,-500.0,0.00011999,2]
[323261785,1713856252654,-508.07850548,0.00011999,2]
[323261788,1713856252669,-500.0,0.00011999,2]
[323261790,1713856252684,-503.80902002,0.00011999,2]
[323261793,1713856252697,-500.0,0.00011999,2]
[323261795,1713856252709,-503.24586189,0.00011999,2]
[323261798,1713856252722,-546.95433286,0.00011999,2]
[323261800,1713856252735,-503.13438236,0.00011999,2]
[323261803,1713856252749,-500.0,0.00011999,2]
[323261805,1713856252762,-500.0,0.00011999,2]
[323261807,1713856252773,-500.0,0.00011999,2]
[323261810,1713856252787,-954.0,0.00011999,2]
[323261812,1713856252800,-500.0,0.00011999,2]
[323261815,1713856252815,-500.0,0.00011999,2]
[323261818,1713856252827,-1016.45,0.00011999,2]
[323261820,1713856252840,-500.0,0.00011999,2]
[323261822,1713856252852,-500.0,0.00011999,2]
[323261825,1713856252868,-500.0,0.00011999,2]
[323261827,1713856252884,-500.0,0.00011999,2]
[323261830,1713856252899,-502.35711965,0.00011999,2]
[323261832,1713856252913,-503.31770367,0.00011999,2]
[323261835,1713856252924,-500.0,0.00011999,2]
[323261837,1713856252934,-500.0,0.00011999,2]
[323261839,1713856252945,-884.36,0.00011999,2]
[323261842,1713856252959,-500.0,0.00011999,2]
[323261844,1713856252970,-500.0,0.00011999,2]
[323261846,1713856252986,-900.16,0.00011999,2]
[323261848,1713856253004,-500.0,0.00011999,2]
[323261851,1713856253015,-593.97,0.00011999,2]
[323261853,1713856253027,-500.0,0.00011999,2]
[323261855,1713856253039,-500.0,0.00011999,2]
[323261858,1713856253051,-500.0,0.00011999,2]
[323261860,1713856253063,-500.0,0.00011999,2]
[323261862,1713856253075,-500.0,0.00011999,2]
[323261865,1713856253088,-500.0,0.00011999,2]
[323261867,1713856253099,-500.83742077,0.00011999,2]
[323261869,1713856253112,-500.0,0.00011999,2]
[323261872,1713856253127,-504.39702051,0.00011999,2]
[323261874,1713856253144,-500.0,0.00011999,2]
[323261877,1713856253157,-500.0,0.00011999,2]
[323261879,1713856253171,-500.0,0.00011999,2]
[323261881,1713856253184,-500.0,0.00011999,2]
[323261884,1713856253197,-500.0,0.00011999,2]
[323261886,1713856253209,-500.0,0.00011999,2]
[323261888,1713856253221,-1257.95,0.00011999,2]
[323261890,1713856253234,-500.0,0.00011999,2]
[323261893,1713856253246,-500.0,0.00011999,2]
[323261895,1713856253258,-501.84892442,0.00011999,2]
[323261897,1713856253271,-515.14,0.00011999,2]
[323261899,1713856253285,-500.0,0.00011999,2]
[323261902,1713856253298,-500.0,0.00011999,2]
[323261904,1713856253310,-500.0,0.00011999,2]
[323261906,1713856253323,-625.26588897,0.00011999,2]
[323261908,1713856253337,-500.0,0.00011999,2]
[323261910,1713856253350,-525.83150384,0.00011999,2]
[323261913,1713856253362,-500.0,0.00011999,2]
[323261915,1713856253376,-500.0,0.00011999,2]
[323261917,1713856253388,-540.29,0.00011999,2]
[323261919,1713856253400,-952.4,0.00011999,2]
[323261922,1713856253417,-500.0,0.00011999,2]
[323261925,1713856253430,-500.0,0.00011999,2]
[323261927,1713856253442,-500.0,0.00011999,2]
[323261929,1713856253456,-1200.76,0.00011999,2]
[323261931,1713856253469,-500.0,0.00011999,2]
[323261934,1713856253481,-500.0,0.00011999,2]
[323261936,1713856253493,-548.63995003,0.00011999,2]
[323261938,1713856253505,-500.0,0.00011999,2]
[323261941,1713856253518,-850.28,0.00011999,2]
[323261943,1713856253532,-850.28,0.00011999,2]
[323261945,1713856253545,-850.28,0.00011999,2]
[323261948,1713856253558,-850.28,0.00011999,2]
[323261950,1713856253571,-500.76115315,0.00011999,2]
[323261952,1713856253583,-500.24757571,0.00011999,2]
[323261954,1713856253595,-500.0,0.00011999,2]
[323261957,1713856253607,-500.0,0.00011999,2]
[323261959,1713856253619,-500.0,0.00011999,2]
[323261961,1713856253630,-500.0,0.00011999,2]
[323261964,1713856253642,-500.0,0.00011999,2]
[323261966,1713856253654,-276.23467757,0.00011999,2]
[323261968,1713856253666,-500.0,0.00011999,2]
[323261970,1713856253677,-500.0,0.00011999,2]
[323261973,1713856253689,-500.0,0.00011999,2]
[323261975,1713856253700,-500.0,0.00011999,2]
[323261977,1713856253712,-500.0,0.00011999,2]
[323261980,1713856253723,-578.7,0.00011999,2]
[323261982,1713856253734,-500.0,0.00011999,2]
[323261984,1713856253746,-501.50915921,0.00011999,2]
[323261986,1713856253758,-500.0,0.00011999,2]
[323261987,1713856253770,-503.35943438,0.00011999,2]
[323261988,1713856253782,-500.0,0.00011999,2]
[323261989,1713856253794,-500.0,0.00011999,2]
[323261990,1713856253806,-500.0,0.00011999,2]
[323261991,1713856253818,-500.0,0.00011999,2]
[323261993,1713856253831,-510.9165463,0.00011999,2]
[323261996,1713856253843,-500.0,0.00011999,2]
[323261998,1713856253855,-500.0,0.00011999,2]
[323262000,1713856253868,-501.28615798,0.00011999,2]
[323262002,1713856253879,-1025.03,0.00011999,2]
[323262005,1713856253891,-500.0,0.00011999,2]
[323262007,1713856253904,-519.69525324,0.00011999,2]
[323262009,1713856253916,-500.0,0.00011999,2]
[323262012,1713856253928,-500.0,0.00011999,2]
[323262014,1713856253940,-1112.29,0.00011999,2]
[323262016,1713856253952,-500.0,0.00011999,2]
[323262019,1713856253965,-500.0,0.00011999,2]
[323262021,1713856253977,-518.42855253,0.00011999,2]
[323262023,1713856253991,-2750.49,0.00011999,2]
[323262025,1713856254002,-500.0,0.00011999,2]
[323262028,1713856254014,-715.09,0.00011999,2]
[323262030,1713856254026,-500.0,0.00011999,2]
[323262032,1713856254039,-501.82531678,0.00011999,2]
[323262035,1713856254051,-500.0,0.00011999,2]
[323262037,1713856254064,-500.0,0.00011999,2]
[323262039,1713856254077,-500.0,0.00011999,2]
[323262042,1713856254089,-505.15724034,0.00011999,2]
[323262044,1713856254101,-736.8,0.00011999,2]
[323262046,1713856254113,-500.0,0.00011999,2]
[323262049,1713856254126,-500.0,0.00011999,2]
[323262051,1713856254137,-500.0,0.00011999,2]
[323262053,1713856254149,-500.0,0.00011999,2]
[323262055,1713856254161,-500.0,0.00011999,2]
[323262058,1713856254172,-500.0,0.00011999,2]
[323262060,1713856254184,-736.06,0.00011999,2]
[323262062,1713856254196,-500.0,0.00011999,2]
[323262065,1713856254208,-500.0,0.00011999,2]
[323262067,1713856254220,-504.44998,0.00011999,2]
[323262069,1713856254232,-500.0,0.00011999,2]
[323262072,1713856254243,-500.0,0.00011999,2]
[323262074,1713856254255,-500.0,0.00011999,2]
[323262076,1713856254267,-500.0,0.00011999,2]
[323262078,1713856254278,-182.15859134,0.00011999,2]
[323262081,1713856254290,-667.22,0.00011999,2]
[323262083,1713856254302,-500.0,0.00011999,2]
[323262085,1713856254314,-604.24,0.00011999,2]
[323262088,1713856254326,-500.0,0.00011999,2]
[323262090,1713856254338,-1960.5,0.00011999,2]
[323262092,1713856254350,-500.0,0.00011999,2]
[323262095,1713856254363,-500.0,0.00011999,2]
[323262097,1713856254376,-500.0,0.00011999,2]
[323262100,1713856254389,-500.0,0.00011999,2]
[323262102,1713856254401,-161.33874926,0.00011999,2]
[323262105,1713856254413,-369.34738943,0.00011999,2]
[323262107,1713856254425,-502.9586078,0.00011999,2]
[323262109,1713856254436,-2011.0,0.00011999,2]
[323262111,1713856254445,-500.0,0.00011999,2]
[323262113,1713856254454,-2555.36,0.00011999,2]
[323262115,1713856254463,-635.01808038,0.00011999,2]
[323262117,1713856254472,-500.0,0.00011999,2]
[323262119,1713856254481,-1256.65,0.00011999,2]
[323262121,1713856254490,-500.0,0.00011999,2]
[323262123,1713856254499,-506.57914626,0.00011999,2]
[323262125,1713856254509,-500.0,0.00011999,2]
[323262127,1713856254517,-509.16295221,0.00011999,2]
[323262129,1713856254527,-513.08883636,0.00011999,2]
[323262131,1713856254536,-511.64580188,0.00011999,2]
[323262133,1713856254545,-504.2168565,0.00011999,2]
[323262135,1713856254554,-512.89631955,0.00011999,2]
[323262137,1713856254564,-500.0,0.00011999,2]
[323262139,1713856254573,-946.0,0.00012,2]
[323262141,1713856254582,-422669.95706332,0.00012,2]
[323262143,1713856254592,-155.0,0.00012,2]
[323262145,1713856254601,-5000.0,0.00012,2]
[323262147,1713856254610,-8000.0,0.00012,2]
[323262149,1713856254620,-1750.0,0.00012,2]
[323262151,1713856254629,-1490.3,0.00012,2]
[323262188,1713856254966,-7999.99,0.0001201,2]
[323262189,1713856255001,-5000.0,0.00012013,2]
[323262190,1713856255018,-556.74332545,0.00012024,2]
[323262191,1713856255028,-5000.0,0.00012025,2]
[323262192,1713856255039,-150.0,0.00012035,2]
[323262194,1713856255048,-5000.0,0.00012038,2]
[323262197,1713856255060,-5000.0,0.0001205,2]
[323262199,1713856255071,-5000.0,0.00012063,2]
[323262201,1713856255081,-5000.0,0.00012075,2]
[323262203,1713856255090,-3871.1496475,0.00012082,2]
[323262205,1713856255099,-5000.0,0.00012088,2]
[323262207,1713856255109,-5000.0,0.000121,2]
[323262209,1713856255120,-250.0,0.000121,2]
[323262211,1713856255129,-254.9,0.000121,2]
[323262213,1713856255139,-5000.0,0.00012113,2]
[323262215,1713856255149,-5000.0,0.00012125,2]
[323262217,1713856255159,-4678.91,0.00012138,2]
[323262219,1713856255168,-556.74332545,0.0001215,2]
[323262221,1713856255178,-150.0,0.00012168,2]
[323262223,1713856255187,-300.0,0.00012171,2]
[323262225,1713856255196,-3871.1496475,0.00012173,2]
[323262227,1713856255204,-2207.0,0.000122,2]
[323262229,1713856255213,-2.15284983,0.0001222,2]
[323262231,1713856255223,-1000.0,0.00012253,2]
[323262233,1713856255232,-10000.0,0.00012253,2]
[323262235,1713856255241,-500.0,0.00012254,2]
[323262237,1713856255250,-206.71908166,0.00012254,2]
[323262239,1713856255259,-586.0143332,0.00012255,2]
[323262241,1713856255268,-341.44606095,0.00012255,2]
[323262242,1713856255276,-265.76037474,0.00012262,2]
[323262244,1713856255285,-3871.1496475,0.00012264,2]
[323262246,1713856255294,-1000.0,0.00012266,2]
[323262248,1713856255303,-500.0,0.00012266,2]
[323262249,1713856255312,-500.0,0.00012268,2]
[323262251,1713856255321,-2500.68,0.00012271,2]
[323262253,1713856255329,-500.0,0.00012271,2]
[323262256,1713856255339,-1573.3,0.00012271,2]
[323262258,1713856255348,-548.42,0.00012271,2]
[323262259,1713856255357,-5000.47,0.00012271,2]
[323262262,1713856255379,-575.39,0.00012271,2]
[323262264,1713856255399,-566.2,0.00012271,2]
[323262266,1713856255421,-500.0,0.00012271,2]
[323262268,1713856255436,-500.0,0.00012271,2]
[323262269,1713856255445,-5825.4,0.00012271,2]
[323262271,1713856255455,-500.0,0.00012271,2]
[323262273,1713856255463,-500.0,0.00012271,2]
[323262275,1713856255472,-1427.11,0.00012271,2]
[323262277,1713856255481,-10963.42,0.00012271,2]
[323262279,1713856255490,-500.0,0.00012271,2]
[323262281,1713856255499,-1312.47,0.00012271,2]
[323262283,1713856255508,-500.0,0.00012271,2]
[323262285,1713856255517,-3878.63,0.00012271,2]
[323262287,1713856255526,-12480.22,0.00012271,2]
[323262289,1713856255535,-500.0,0.00012271,2]
[323262291,1713856255544,-7402.42,0.00012271,2]
[323262293,1713856255553,-500.0,0.00012271,2]
[323262295,1713856255562,-1261.87,0.00012271,2]
[323262297,1713856255571,-1797.84,0.00012271,2]
[323262299,1713856255580,-500.0,0.00012271,2]
[323262301,1713856255589,-343.54967955,0.00012271,2]
[323262303,1713856255598,-500.0,0.00012271,2]
[323262305,1713856255607,-500.0,0.00012271,2]
[323262307,1713856255617,-500.0,0.00012271,2]
[323262309,1713856255627,-582.64,0.00012271,2]
[323262311,1713856255636,-533.96,0.00012271,2]
[323262313,1713856255646,-539.64,0.00012272,2]
[323262315,1713856255656,-639.63,0.00012272,2]
[323262317,1713856255665,-1059.45,0.00012272,2]
[323262319,1713856255674,-500.0,0.00012272,2]
[323262321,1713856255683,-631.04,0.00012272,2]
[323262323,1713856255693,-547.14658698,0.00012272,2]
[323262325,1713856255702,-535.3,0.00012272,2]
[323262327,1713856255711,-283.03519767,0.00012272,2]
[323262329,1713856255720,-372.41793359,0.00012272,2]
[323262331,1713856255729,-500.0,0.00012272,2]
[323262333,1713856255738,-500.0,0.00012272,2]
[323262335,1713856255747,-1045.74,0.00012272,2]
[323262337,1713856255757,-500.0,0.00012272,2]
[323262339,1713856255766,-500.0,0.00012272,2]
[323262341,1713856255775,-500.0,0.00012272,2]
[323262343,1713856255784,-500.0,0.00012272,2]
[323262345,1713856255793,-500.0,0.00012272,2]
[323262347,1713856255802,-500.0,0.00012272,2]
[323262349,1713856255811,-525.91,0.00012272,2]
[323262351,1713856255820,-500.0,0.00012272,2]
[323262353,1713856255829,-500.0,0.00012272,2]
[323262355,1713856255838,-737.67,0.00012272,2]
[323262357,1713856255847,-500.0,0.00012272,2]
[323262359,1713856255856,-500.0,0.00012272,2]
[323262361,1713856255865,-500.0,0.00012272,2]
[323262363,1713856255875,-502.68190211,0.00012272,2]
[323262365,1713856255884,-500.0,0.00012272,2]
[323262367,1713856255894,-503.27949879,0.00012272,2]
[323262369,1713856255903,-500.0,0.00012272,2]
[323262371,1713856255912,-524.59159659,0.00012272,2]